bitfinex-derivatives/quotes_ETHF0:USTF0_20251220
["timestamp","ask_amount","ask_price","bid_price","bid_amount"]
[1766204840768,0.16757,2985.4,2984.1,0.00502976]
[1766204840769,3.351,2985.3,2984.1,0.00502976]
[1766204845367,1.7571058,2985.2,2984.1,1.76213556]
[1766204848370,1.75712843,2985.2,2984.1,0.00502976]
[1766204849168,1.75712843,2985.2,2984.2,3.351]
[1766204865574,1.75712843,2985.2,2984.3,3.351]
[1766204869474,1.75712843,2985.2,2984.4,3.351]
[1766204870981,3.351,2985.3,2984.4,3.351]
[1766204872979,3.351,2985.3,2984.6,1.75712843]
[1766204873180,3.351,2985.3,2984.7,3.351]
[1766204885392,0.00502976,2985.6,2984.7,3.351]
[1766204885591,3.351,2985.5,2984.7,3.351]
[1766204891495,3.351,2985.5,2984.6,1.75712843]
[1766204891690,3.351,2985.5,2984.7,3.351]
[1766204897995,3.351,2985.5,2984.8,1.75712843]
[1766204899602,0.00502976,2985.6,2984.8,1.75712843]
[1766204905214,0.00502976,2985.6,2984.7,3.351]
[1766204905404,0.00502976,2985.6,2984.7,5.10812843]
[1766204907416,0.00502976,2985.6,2984.7,3.351]
[1766204910215,0.00502976,2985.6,2984.9,1.75621303]
[1766204910415,0.00502976,2985.6,2985.0,3.351]
[1766204911337,2.976e-05,2985.6,2985.0,3.351]
[1766204911620,3.351,2985.9,2985.0,3.351]
[1766204912620,0.00502976,2985.7,2985.0,3.351]
[1766204921227,0.00502976,2985.7,2984.1,0.00502976]
[1766204921417,0.00502976,2985.7,2984.5,1.75616852]
[1766204921619,0.00502976,2985.7,2984.6,3.351]
[1766204921820,3.351,2985.6,2984.2,1.75616852]
[1766204922118,3.351,2985.6,2984.3,5.361]
[1766204925330,0.00502976,2985.7,2984.8,1.75616852]
[1766204925521,0.00502976,2985.7,2984.9,3.351]
[1766204961050,3.351,2986.0,2984.9,3.351]
[1766204961649,3.351,2986.0,2985.0,2.575]
[1766204961851,3.351,2986.0,2985.1,1.75616852]
[1766204962052,0.00502976,2985.8,2985.2,3.35]
[1766204962851,3.351,2986.0,2985.2,3.35]
[1766204963243,3.35,2986.3,2985.4,1.75616852]
[1766204963443,3.35,2986.3,2985.5,3.35]
[1766204963643,0.00297161,2986.5,2985.7,1.75616852]
[1766204963843,0.00297161,2986.5,2985.8,3.35502976]
[1766204964038,0.00297161,2986.5,2985.8,3.35773472]
[1766204964843,3.35,2986.6,2985.8,3.35773472]
[1766204965750,3.35319389,2986.6,2985.8,3.35773472]
[1766204967350,3.35319389,2986.6,2986.1,1.75486517]
[1766204967551,3.35319389,2986.6,2986.1,5.10486517]
[1766204969047,0.00319389,2986.6,2986.1,5.10486517]
[1766204977159,0.00319389,2986.6,2986.1,3.35]
[1766204977354,0.00319389,2986.6,2985.9,1.75486517]
[1766204977560,0.00319389,2986.6,2986.1,3.35]
[1766204979162,0.00319389,2986.6,2985.8,1.76259989]
[1766204979366,0.00319389,2986.6,2985.9,3.35]
[1766204983365,3.35319389,2986.6,2985.8,0.00773472]
[1766204983565,3.35319389,2986.6,2985.9,3.35]
[1766204983866,5.10805906,2986.6,2985.9,3.35]
[1766204984266,5.10805906,2986.6,2985.8,0.00773472]
[1766204984471,5.10805906,2986.6,2985.8,3.35773472]
[1766204984668,3.35319389,2986.6,2985.8,3.35773472]
[1766204988383,5.10864241,2986.6,2985.8,3.35773472]
[1766204994876,1.75544852,2986.4,2985.8,0.00773472]
[1766204995083,3.35,2986.3,2985.8,0.00773472]
[1766204997385,1.75544852,2986.2,2985.1,1.75544852]
[1766204997975,1.75544852,2986.0,2984.8,1.75544852]
[1766204998177,0.00502976,2985.7,2985.1,0.00502976]
[1766204998379,0.00502976,2985.7,2985.2,3.35]
[1766204999889,0.00502976,2985.7,2985.1,0.00502976]
[1766205000188,0.00502976,2985.7,2985.2,3.35]
[1766205001375,0.00502976,2985.7,2985.1,0.00502976]
[1766205003779,1.92295852,2986.5,2985.4,1.75544852]
[1766205004094,3.35,2986.4,2985.5,3.35]
[1766205004388,3.35,2986.4,2985.6,1.75544852]
[1766205006387,3.35,2986.4,2985.5,3.35]
[1766205007188,3.35,2986.4,2985.4,1.75544852]
[1766205007394,5.10544852,2986.4,2985.5,3.35]
[1766205007588,5.10544852,2986.4,2985.6,3.35]
[1766205008392,3.35,2986.4,2985.6,3.35]
[1766205013093,1.75544852,2986.3,2985.2,4.22944852]
[1766205013401,1.75544852,2986.3,2985.3,3.35]
[1766205013598,3.35,2986.4,2985.4,1.75544852]
[1766205029514,3.35,2986.4,2985.3,3.35]
[1766205031212,3.35,2986.3,2985.3,3.35]
[1766205036713,0.00319389,2986.6,2985.3,3.35]
[1766205036907,3.35,2986.5,2985.3,3.35]
[1766205038921,3.35,2986.5,2985.5,1.75561907]
[1766205039116,3.35,2986.5,2985.6,3.35]
[1766205039318,0.00319389,2986.6,2985.6,3.35]
[1766205039521,3.35319389,2986.6,2985.8,1.75561907]
[1766205039721,3.35319389,2986.6,2985.9,3.35]
[1766205040115,0.00319389,2986.6,2985.9,3.35]
[1766205043816,0.00319389,2986.6,2985.5,2.295]
[1766205044022,0.00319389,2986.6,2985.6,3.35]
[1766205049330,0.00319389,2986.6,2985.6,5.10561907]
[1766205050625,0.16746,2987.3,2985.9,1.75561907]
[1766205050824,3.35,2987.2,2986.0,3.35]
[1766205051729,3.35284204,2987.2,2986.0,3.35]
[1766205062338,0.00284204,2987.2,2986.0,3.35]
[1766205062636,3.349,2987.1,2986.0,3.35]
[1766205063835,3.349,2987.0,2986.0,3.35]
[1766205064141,3.349,2987.0,2986.2,1.75483295]
[1766205064336,3.349,2987.0,2986.3,3.349]
[1766205067434,0.00284204,2987.2,2986.3,3.349]
[1766205067639,3.349,2987.1,2986.3,3.349]
[1766205071134,0.00284204,2987.2,2986.3,3.349]
[1766205071334,3.349,2987.1,2986.3,3.349]
[1766205071533,3.349,2987.1,2986.2,1.75483295]
[1766205071737,3.349,2987.1,2986.3,3.349]
[1766205081049,0.00284204,2987.2,2986.4,1.75483295]
[1766205081242,3.35184204,2987.2,2986.4,1.75483295]
[1766205082337,0.00284204,2987.2,2986.4,1.75483295]
[1766205087062,3.349,2987.6,2986.7,1.75483295]
[1766205087263,3.349,2987.5,2986.9,0.00502976]
[1766205087457,0.0778333,2987.7,2986.9,0.00502976]
[1766205087666,3.349,2987.5,2986.9,0.00502976]
[1766205088056,3.35227412,2987.5,2986.9,0.0074799]
[1766205099269,0.00327412,2987.5,2986.9,0.0074799]
[1766205099567,3.349,2987.4,2986.9,0.0074799]
[1766205099969,0.00327412,2987.5,2986.9,0.0074799]
[1766205100166,3.35227412,2987.5,2986.9,0.0074799]
[1766205103770,1.75433357,2987.3,2986.9,0.0074799]
[1766205108579,1.75433357,2987.3,2986.8,3.349]
[1766205108781,1.75433357,2987.3,2986.8,1.7147]
[1766205108982,1.75433357,2987.3,2986.8,1.1438]
[1766205109585,1.75935482,2987.3,2986.8,1.15307178]
[1766205112784,1.75433357,2987.1,2986.0,1.75433357]
[1766205112987,1.75433357,2987.1,2986.1,5.311]
[1766205113681,3.349,2987.2,2986.1,5.311]
[1766205113882,3.349,2987.2,2986.4,0.00502125]
[1766205114086,3.349,2987.2,2986.5,3.349]
[1766205115987,3.349,2987.2,2986.4,0.00502125]
[1766205116188,3.349,2987.2,2986.4,3.35402125]
[1766205118590,3.349,2987.2,2986.5,1.75433357]
[1766205119088,3.349,2987.2,2986.4,3.35402125]
[1766205124492,0.00502125,2987.3,2986.4,3.35402125]
[1766205124695,3.349,2987.2,2986.4,3.35402125]
[1766205137604,5.1035387,2987.2,2986.4,0.00502125]
[1766205137910,5.1035387,2987.2,2986.5,3.349]
[1766205139503,3.349,2987.2,2986.5,3.349]
[1766205142308,0.00502125,2987.3,2986.5,5.1035387]
[1766205142611,3.35402125,2987.3,2986.5,5.1035387]
[1766205152726,3.35402125,2987.3,2986.5,3.349]
[1766205166138,3.35402125,2987.3,2986.6,3.349]
[1766205166934,3.35402125,2987.3,2986.4,0.00502125]
[1766205167139,3.35402125,2987.3,2986.5,3.349]
[1766205173047,3.35402125,2987.3,2986.6,3.349]
[1766205181050,0.00502125,2987.3,2986.6,3.349]
[1766205182152,3.35402125,2987.3,2986.6,3.349]
[1766205209272,0.00502125,2987.3,2986.6,3.349]
[1766205215569,0.00502125,2987.3,2986.7,1.75408618]
[1766205218273,0.00502125,2987.3,2986.8,3.349]
[1766205223574,0.00327412,2987.5,2986.8,3.349]
[1766205223773,0.00327412,2987.5,2986.8,5.10308618]
[1766205224377,3.35227412,2987.5,2986.8,3.349]
[1766205224576,0.00502125,2987.4,2986.8,3.349]
[1766205225172,1.75408618,2987.0,2986.4,0.00502125]
[1766205225580,1.75408618,2987.0,2986.4,3.35402125]
[1766205225972,3.349,2986.9,2986.4,0.00502125]
[1766205226175,1.75408618,2986.6,2986.4,0.00502125]
[1766205226369,1.75408618,2986.8,2986.4,2.125e-05]
[1766205226574,3.349,2986.9,2986.4,2.125e-05]
[1766205227481,1.75408618,2986.8,2986.4,2.125e-05]
[1766205236986,3.349,2986.9,2986.4,2.125e-05]
[1766205237189,10.12708618,2987.2,2986.4,2.125e-05]
[1766205237382,3.349,2986.9,2986.4,2.125e-05]
[1766205241893,1.75408618,2987.0,2986.4,2.125e-05]
[1766205242095,3.349,2986.9,2986.4,2.125e-05]
[1766205252702,1.75408618,2986.8,2986.4,2.125e-05]
[1766205255703,1.75515801,2986.8,2986.4,2.125e-05]
[1766205256608,3.349,2986.9,2986.4,2.125e-05]
[1766205280120,8.374,2987.3,2986.4,2.125e-05]
[1766205280315,3.349,2987.0,2986.4,2.125e-05]
[1766205280816,0.00502125,2987.4,2986.4,2.125e-05]
[1766205281021,11.723,2987.3,2986.4,2.125e-05]
[1766205282027,0.00502125,2987.4,2986.4,2.125e-05]
[1766205282318,11.723,2987.3,2986.4,2.125e-05]
[1766205284724,3.349,2987.2,2986.4,2.125e-05]
[1766205286126,5.10395089,2987.2,2986.4,2.125e-05]
[1766205286315,5.10395089,2987.2,2986.0,3.349]
[1766205286316,1.75495089,2986.8,2986.0,3.349]
[1766205286521,5.10395089,2986.8,2986.1,2.8608]
[1766205286731,5.10395089,2986.8,2985.4,1.80609554]
[1766205286927,5.10395089,2986.8,2985.5,5.139]
[1766205287227,5.10395089,2986.8,2985.9,0.00502125]
[1766205295443,0.16746,2987.3,2985.9,0.00502125]
[1766205295643,3.349,2987.2,2986.0,1.75495089]
[1766205295947,3.349,2987.1,2986.1,3.349]
[1766205297240,13.09502125,2987.4,2986.1,3.349]
[1766205297241,0.00502125,2987.4,2986.3,1.75495089]
[1766205297445,3.349,2987.3,2986.4,3.349]
[1766205313448,0.00502125,2987.4,2986.4,3.349]
[1766205313741,0.00502125,2987.4,2986.5,1.75495089]
[1766205319555,0.00502125,2987.4,2986.4,3.349]
[1766205323758,0.00502125,2987.4,2986.5,1.75422969]
[1766205327363,0.00502125,2987.4,2986.6,1.75422969]
[1766205327662,0.00502125,2987.4,2986.7,3.349]
[1766205332567,1.75422969,2987.2,2985.9,0.00502125]
[1766205332767,1.75422969,2987.2,2986.0,3.474]
[1766205332963,1.75422969,2986.9,2985.9,0.00502125]
[1766205333170,3.349,2986.8,2985.9,0.00502125]
[1766205333466,3.349,2986.8,2985.9,3.35402125]
[1766205335368,5.10420744,2986.8,2985.9,3.35402125]
[1766205335868,3.349,2986.8,2985.9,3.35402125]
[1766205336972,3.349,2986.8,2985.9,5.10922869]
[1766205337164,4.90420744,2987.1,2985.9,5.10922869]
[1766205337365,3.349,2987.0,2986.1,1.75520744]
[1766205337873,3.349,2987.1,2986.3,1.75520744]
[1766205339469,3.349,2987.2,2986.3,1.75520744]
[1766205339974,3.349,2987.2,2986.2,3.349]
[1766205340176,3.349,2987.2,2986.2,5.10420744]
[1766205345477,5.10420744,2987.2,2985.9,0.00502125]
[1766205345682,1.75520744,2986.8,2986.0,3.349]
[1766205346382,3.349,2986.9,2986.0,3.349]
[1766205359699,3.349,2986.9,2986.1,1.75520744]
[1766205360497,1.75520744,2987.2,2986.1,1.75520744]
[1766205360800,3.349,2986.9,2986.1,1.75520744]
[1766205361193,3.349,2987.0,2986.3,1.75520744]
[1766205361396,3.349,2987.0,2986.3,5.10420744]
[1766205363108,3.349,2987.0,2986.3,3.349]
[1766205365003,0.00502125,2987.4,2986.9,1.75520744]
[1766205365225,0.00502125,2987.4,2986.8,3.349]
[1766205365411,3.349,2987.3,2986.6,3.349]
[1766205424860,5.1033968,2987.3,2985.9,0.00502125]
[1766205425071,1.7543968,2987.0,2986.0,5.835]
[1766205425362,5.1023968,2986.9,2986.1,3.348]
[1766205430564,3.348,2986.9,2986.1,3.348]
[1766205441673,3.348,2986.9,2985.9,0.00502125]
[1766205441868,3.348,2986.9,2986.0,3.349]
[1766205443677,0.00502125,2987.4,2986.2,1.7543968]
[1766205443678,3.349,2987.2,2986.2,1.7543968]
[1766205443878,3.349,2987.2,2986.3,3.349]
[1766205452482,0.00502125,2987.4,2986.3,3.349]
[1766205452682,3.349,2987.3,2986.5,1.7543968]
[1766205452984,3.349,2987.3,2986.6,3.349]
[1766205456782,0.00502125,2987.4,2986.6,3.349]
[1766205465396,0.00502125,2987.4,2986.7,1.75420248]
[1766205469687,3.35227412,2987.5,2986.9,1.75420248]
[1766205470393,0.00327412,2987.5,2986.9,1.75420248]
[1766205470605,3.35729537,2987.5,2986.9,1.75420248]
[1766205471889,0.00829537,2987.5,2986.9,5.10320248]
[1766205474387,0.00829537,2987.5,2986.9,3.349]
[1766205502612,3.35629537,2987.5,2986.9,3.349]
[1766205502907,1.96839537,2987.5,2986.9,3.349]
[1766205503114,0.58059537,2987.5,2986.9,3.349]
[1766205503310,1.75420248,2987.8,2986.9,3.349]
[1766205503506,3.348,2987.7,2986.9,3.349]
[1766205503707,3.35061371,2987.7,2986.9,3.349]
[1766205508213,0.00261371,2987.7,2987.1,1.75420248]
[1766205508412,2.9146,2987.8,2987.3,1.75420248]
[1766205508719,2.4812,2987.8,2987.3,0.00502125]
[1766205509514,2.48482546,2987.8,2987.3,0.00502125]
[1766205510814,4.23902794,2987.8,2987.3,0.00502125]
[1766205521423,2.48482546,2987.8,2987.3,0.00502125]
[1766205526328,2.48482546,2987.8,2987.3,2.125e-05]
[1766205527227,2.48983539,2987.8,2987.3,2.125e-05]
[1766205535836,3.348,2987.7,2987.3,2.125e-05]
[1766205551547,3.348,2987.7,2985.0,0.16759]
[1766205551548,3.51544,2987.7,2985.0,0.16759]
[1766205551847,1.75419074,2987.3,2985.9,1.75419074]
[1766205552050,3.348,2987.2,2985.9,5.10219074]
[1766205552545,3.348,2987.2,2986.3,0.00502125]
[1766205553455,1.75419074,2987.4,2986.3,0.00502125]
[1766205553661,4.979,2987.1,2986.3,0.00502125]
[1766205553854,3.348,2987.0,2986.3,0.00502125]
[1766205561869,1.75419074,2986.8,2985.5,3.35161139]
[1766205562167,3.349,2986.7,2985.5,3.35161139]
[1766205562866,3.349,2986.7,2985.8,0.00502125]
[1766205573178,1.75419074,2987.1,2985.8,0.00502125]
[1766205573481,1.75419074,2986.9,2985.8,0.00502125]
[1766205574279,6.327,2986.8,2985.8,0.00502125]
[1766205574480,9.676,2986.8,2985.8,0.00502125]
[1766205575682,11.134,2986.7,2985.8,0.00502125]
[1766205575887,3.349,2986.6,2985.8,0.00502125]
[1766205576185,0.16747,2987.2,2985.8,5.10821199]
[1766205576186,3.349,2986.5,2985.8,5.10821199]
[1766205576382,3.349,2986.6,2985.8,5.10821199]
[1766205577580,3.349,2986.6,2985.8,0.00502125]
[1766205586789,5.10423232,2986.6,2985.8,0.00502125]
[1766205586991,1.75523232,2986.4,2985.8,2.125e-05]
[1766205587289,3.349,2986.3,2985.8,2.125e-05]
[1766205594298,0.16747,2987.1,2985.8,2.125e-05]
[1766205594495,1.75541453,2986.8,2985.8,2.125e-05]
[1766205594694,3.349,2986.7,2985.8,2.125e-05]
[1766205596592,0.16747,2987.1,2985.8,2.125e-05]
[1766205596799,19.06941453,2987.0,2985.9,1.75541453]
[1766205596994,1.75541453,2986.8,2985.8,2.125e-05]
[1766205597193,3.349,2986.7,2985.8,2.125e-05]
[1766205599500,1.75541453,2986.6,2985.8,2.125e-05]
[1766205602396,3.349,2986.7,2985.8,2.125e-05]
[1766205602397,1.75541453,2986.4,2985.8,2.125e-05]
[1766205602603,3.349,2986.3,2985.8,2.125e-05]
[1766205607602,1.75541453,2986.2,2985.8,2.125e-05]
[1766205611516,0.00502125,2986.3,2985.5,1.139e-05]
[1766205612013,3.362,2986.2,2985.5,1.139e-05]
[1766205612720,3.362,2986.2,2985.6,0.00502125]
[1766205613316,8.879,2986.2,2985.6,0.00502125]
[1766205613511,3.349,2986.1,2985.6,0.00502125]
[1766205613723,0.00502125,2986.3,2985.6,0.00502125]
[1766205613923,13.891,2986.2,2985.6,0.00502125]
[1766205615320,0.00502125,2986.3,2985.6,0.00502125]
[1766205615521,3.35,2986.2,2985.6,0.00502125]
[1766205619639,0.00502125,2986.3,2985.6,0.00502125]
[1766205619827,3.35,2986.2,2985.6,0.00502125]
[1766205621624,3.35,2986.1,2985.6,0.00502125]
[1766205638137,5.10541453,2986.1,2985.5,1.139e-05]
[1766205639134,5.10541453,2986.1,2985.5,0.00503264]
[1766205639334,1.75541453,2985.9,2984.9,3.35]
[1766205639535,1.75541453,2985.7,2984.9,3.35]
[1766205639726,3.35,2985.6,2984.9,3.35]
[1766205640434,3.35389782,2985.6,2985.0,0.00502125]
[1766205644238,3.35389782,2985.6,2985.0,2.125e-05]
[1766205648545,9.90002125,2986.3,2985.0,2.125e-05]
[1766205648546,0.00502125,2986.3,2985.4,1.75635314]
[1766205649031,5.712,2986.2,2985.4,1.75635314]
[1766205649443,5.71459442,2986.2,2985.4,1.75635314]
[1766205654147,0.00259442,2986.2,2985.2,3.35]
[1766205654339,3.35,2986.1,2985.2,3.35]
[1766205654847,0.00259442,2986.2,2985.2,3.35]
[1766205655147,3.35,2986.1,2985.2,3.35]
[1766205663457,0.00259442,2986.2,2985.2,3.35]
[1766205663756,3.35,2986.1,2985.2,3.35]
[1766205666258,3.35,2986.0,2985.4,1.75558755]
[1766205666951,3.35,2985.9,2985.4,1.75558755]
[1766205673454,3.35,2985.9,2985.2,3.35]
[1766205680265,3.35,2985.9,2985.0,2.125e-05]
[1766205701682,2.49,2986.0,2985.0,2.125e-05]
[1766205701882,3.35,2985.8,2985.0,2.125e-05]
[1766205704992,0.00259442,2986.2,2985.0,2.125e-05]
[1766205705188,3.526,2986.0,2985.0,2.125e-05]
[1766205705392,3.526,2986.0,2985.0,1.75595297]
[1766205711597,3.35,2985.9,2985.0,1.75595297]
[1766205715299,1.75852614,2986.2,2985.0,1.75595297]
[1766205715495,7.668,2986.1,2985.0,1.75595297]
[1766205721402,9.127,2986.0,2985.2,1.75593172]
[1766205721598,9.127,2986.0,2985.0,2.125e-05]
[1766205721790,9.127,2986.0,2985.0,1.75595297]
[1766205723106,1.75593172,2986.1,2985.0,1.75595297]
[1766205723297,4.227,2986.0,2985.0,1.75595297]
[1766205728113,1.75593172,2986.1,2985.0,1.75595297]
[1766205728306,4.227,2986.0,2985.0,1.75595297]
[1766205729912,4.227,2986.0,2985.1,1.75585175]
[1766205732010,3.35,2985.9,2985.1,1.75585175]
[1766205734515,3.35,2985.9,2985.0,2.125e-05]
[1766205734717,3.35,2985.8,2985.2,1.75585175]
[1766205747326,0.00259442,2986.2,2985.2,1.75585175]
[1766205747624,3.353,2986.1,2985.2,1.75585175]
[1766205749722,0.00259442,2986.2,2985.2,1.75585175]
[1766205749926,3.353,2986.1,2985.4,1.75585175]
[1766205751229,0.00259442,2986.2,2985.4,1.75585175]
[1766205751527,9.549,2986.1,2985.4,1.75585175]
[1766205752922,0.00259442,2986.2,2985.4,1.75585175]
[1766205753132,10.916,2986.1,2985.4,1.75585175]
[1766205761123,10.916,2986.1,2985.0,2.125e-05]
[1766205761325,10.916,2986.1,2985.3,1.75585175]
[1766205767336,10.916,2986.1,2985.0,1.75566529]
[1766205773946,10.916,2986.1,2985.1,3.35]
[1766205775747,0.00259442,2986.2,2985.1,3.35]
[1766205776048,3.35,2986.1,2985.1,3.35]
[1766205780745,0.00259442,2986.2,2985.1,3.35]
[1766205781044,3.35,2986.1,2985.1,3.35]
[1766205781240,4.86259442,2986.2,2985.1,3.35]
[1766205781446,3.35,2986.0,2985.1,3.35]
[1766205787263,3.35,2985.9,2985.1,3.35]
[1766205818190,0.00259442,2986.2,2985.1,3.35]
[1766205818492,3.35,2986.1,2985.1,3.35]
[1766205818790,3.35,2986.0,2985.1,3.35]
[1766205819992,0.00259442,2986.2,2985.1,3.35]
[1766205820195,3.35,2986.1,2985.2,1.75562813]
[1766205821697,0.00259442,2986.2,2985.2,1.75562813]
[1766205822195,3.35,2986.1,2985.1,3.35]
[1766205822996,0.00259442,2986.2,2985.1,3.35]
[1766205823298,3.35,2986.1,2985.4,1.75562813]
[1766205823691,0.00259442,2986.2,2985.4,1.75562813]
[1766205824001,3.35259442,2986.2,2985.7,1.75562813]
[1766205824987,3.35259442,2986.2,2985.5,3.35]
[1766205829401,3.35259442,2986.2,2985.7,1.75517754]
[1766205845011,3.35259442,2986.2,2985.5,3.35]
[1766205845213,3.35259442,2986.2,2985.5,5.10517754]
[1766205845609,3.35259442,2986.2,2985.5,3.35]
[1766205852908,3.35259442,2986.2,2985.6,1.75517754]
[1766205853111,3.35259442,2986.2,2985.5,3.35]
[1766205853112,0.00259442,2986.2,2985.8,1.75517754]
[1766205853318,3.349,2986.1,2985.8,1.75517754]
[1766205861230,0.00259442,2986.2,2985.8,1.75517754]
[1766205861433,3.35159442,2986.2,2985.8,1.75517754]
[1766205863935,3.35159442,2986.2,2985.6,1.75517754]
[1766205865333,3.35159442,2986.2,2985.6,1.75520061]
[1766205873641,0.00259442,2986.2,2985.6,1.75520061]
[1766205873844,3.35159442,2986.2,2985.6,1.75520061]
[1766205874636,0.00259442,2986.2,2985.6,1.75520061]
[1766205874836,3.35159442,2986.2,2985.6,1.75520061]
[1766205875940,3.35159442,2986.2,2985.5,5.10520061]
[1766205890859,3.35159442,2986.2,2985.5,3.35]
[1766205891158,3.35159442,2986.2,2985.5,5.10520061]
[1766205891454,3.35159442,2986.2,2985.5,3.35]
[1766205894960,3.349,2986.1,2985.5,3.35]
[1766205903268,3.349,2986.1,2985.5,2.422]
[1766205903458,3.349,2986.1,2985.2,3.349]
[1766205905864,3.349,2986.1,2985.0,2.125e-05]
[1766205906066,3.349,2986.1,2985.0,3.34902125]
[1766205927879,3.349,2986.1,2985.0,2.125e-05]
[1766205928084,1.75528255,2985.9,2985.0,2.125e-05]
[1766205928289,8.433,2985.8,2985.0,2.125e-05]
[1766205933179,1.75528255,2985.6,2984.4,3.35]
[1766205933482,3.35,2985.5,2984.4,3.35]
[1766205934185,3.35,2985.5,2984.7,0.00333761]
[1766205935583,2.61,2985.4,2984.7,0.00333761]
[1766205935789,3.35,2985.3,2984.7,0.00333761]
[1766205935985,1.9057,2985.2,2984.7,0.00333761]
[1766205936194,0.4618,2985.2,2984.7,0.00333761]
[1766205938985,0.16754,2986.0,2984.7,0.00333761]
[1766205939180,14.374,2985.9,2984.7,0.00333761]
[1766205944293,12.694,2985.8,2984.7,0.00333761]
[1766205950897,14.45080526,2985.8,2984.7,0.00333761]
[1766205951399,1.75642622,2985.7,2984.7,0.00333761]
[1766205953904,0.16754,2985.9,2984.6,1.75642622]
[1766205954096,3.35,2985.6,2984.6,1.75642622]
[1766205954297,1.75642622,2985.8,2984.6,1.75642622]
[1766205954500,5.138,2985.6,2984.6,1.75642622]
[1766205960006,1.75642622,2985.8,2984.6,1.75642622]
[1766205960203,4.817,2985.6,2984.6,1.75642622]
[1766205960505,4.817,2985.6,2984.4,3.3532933]
[1766205960506,4.817,2985.6,2984.8,1.75642622]
[1766205960915,0.00259442,2986.2,2985.2,1.75642622]
[1766205961099,19.282,2986.1,2985.0,1.75642622]
[1766205961702,1.75642622,2986.0,2985.0,1.75642622]
[1766205964904,1.75642622,2986.0,2984.8,1.75642622]
[1766205965128,1.75642622,2985.8,2984.7,3.35]
[1766205965303,3.35,2985.7,2984.7,3.35]
[1766205969410,3.35,2985.6,2984.8,1.75642622]
[1766205987022,3.35,2985.6,2984.7,3.35]
[1766205987329,3.35,2985.6,2984.4,3.3532933]
[1766205987330,1.75642622,2985.4,2984.4,3.3532933]
[1766205987518,1.75642622,2985.4,2984.4,5.10971952]
[1766205987519,3.35,2985.3,2984.4,5.10971952]
[1766206001343,1.75642622,2985.6,2984.4,5.10971952]
[1766206001647,5.598,2985.5,2984.6,1.75642622]
[1766206002348,5.598,2985.5,2984.5,1.75650887]
[1766206009851,5.598,2985.5,2984.4,3.3532933]
[1766206010053,1.75650887,2985.4,2984.4,3.3532933]
[1766206011345,5.598,2985.5,2984.4,3.3532933]
[1766206016453,1.75673533,2985.6,2984.4,3.3532933]
[1766206016752,8.076,2985.5,2984.4,3.3532933]
[1766206018258,1.75673533,2985.6,2984.4,3.3532933]
[1766206018557,4.203,2985.5,2984.4,3.3532933]
[1766206025763,1.75673533,2985.6,2984.4,3.3532933]
[1766206025965,4.208,2985.5,2984.4,3.3532933]
[1766206027061,3.351,2985.4,2984.4,3.3532933]
[1766206030166,3.681,2985.5,2984.4,3.3532933]
[1766206030167,0.16754,2985.9,2984.4,3.3532933]
[1766206030469,4.09,2985.5,2984.4,3.3532933]
[1766206030662,3.351,2985.4,2984.4,3.3532933]
[1766206031964,1.75673533,2984.8,2983.0,0.1677]
[1766206032170,2.76284618,2985.4,2983.6,1.76173533]
[1766206032171,1.75673533,2985.3,2983.6,1.76173533]
[1766206032469,12.22,2985.2,2983.8,1.75673533]
[1766206032968,12.22,2985.2,2983.8,1.75931208]
[1766206033165,0.00502125,2984.8,2983.8,1.75931208]
[1766206033360,3.351,2984.7,2983.8,1.75931208]
[1766206033564,3.351,2984.6,2983.8,0.00257675]
[1766206033768,0.00502125,2984.8,2983.8,3.35357675]
[1766206033972,3.351,2984.7,2983.8,3.35357675]
[1766206037665,3.351,2984.7,2983.8,5.11031208]
[1766206038469,3.351,2984.6,2983.8,5.11031208]
[1766206039472,0.00502125,2984.8,2983.8,5.11031208]
[1766206039673,3.351,2984.7,2983.8,5.11031208]
[1766206039873,0.00502125,2984.8,2983.8,5.11031208]
[1766206040170,3.351,2984.6,2983.8,5.11031208]
[1766206042173,0.00502125,2984.8,2983.8,5.11031208]
[1766206042372,3.351,2984.7,2983.8,5.11031208]
[1766206043278,0.00502125,2984.8,2983.8,5.11031208]
[1766206043470,3.351,2984.7,2983.8,5.11031208]
[1766206044066,0.00502125,2984.8,2983.8,5.11031208]
[1766206044267,3.351,2984.7,2983.8,5.11031208]
[1766206045871,3.351,2984.7,2983.9,1.75673533]
[1766206063190,0.00502125,2984.8,2984.2,1.75673533]
[1766206063391,3.351,2984.6,2984.2,1.75673533]
[1766206069591,0.00502125,2984.8,2984.2,1.75673533]
[1766206069795,3.351,2984.9,2984.2,5.10773533]
[1766206070398,3.351,2984.9,2984.3,1.75640264]
[1766206070794,3.35602125,2984.9,2984.3,1.75640264]
[1766206071302,0.00502125,2984.9,2984.3,1.75640264]
[1766206071590,3.35602125,2984.9,2984.3,1.75640264]
[1766206071897,0.00502125,2984.9,2984.3,1.75640264]
[1766206072195,3.35602125,2984.9,2984.3,1.75640264]
[1766206073495,0.00502125,2984.9,2984.5,1.75645768]
[1766206073684,3.35602125,2984.9,2984.5,1.75645768]
[1766206073893,1.0068163,2985.5,2984.7,1.75645768]
[1766206074084,0.80322571,2985.9,2984.7,1.75645768]
[1766206074085,5.801,2985.4,2984.7,1.75645768]
[1766206074394,5.801,2985.4,2984.5,1.75645768]
[1766206074995,0.00502125,2985.2,2984.5,1.75645768]
[1766206075186,0.00502125,2985.2,2984.2,3.351]
[1766206075388,3.351,2985.1,2984.4,1.75645768]
[1766206080295,0.00502125,2985.2,2984.6,1.75645768]
[1766206080496,3.351,2985.1,2984.6,1.75645768]
[1766206082495,0.00502125,2985.2,2984.8,1.75645768]
[1766206082688,3.35602125,2985.2,2984.8,1.75645768]
[1766206085904,0.00502125,2985.2,2984.8,1.75645768]
[1766206086305,3.35602125,2985.2,2984.8,1.75645768]
[1766206088710,3.35602125,2985.2,2984.6,1.75645768]
[1766206094218,0.00502125,2985.2,2984.6,1.75645768]
[1766206094416,3.35602125,2985.2,2984.6,1.75645768]